[Event "44th Chess Olympiad Open 2022"]
[Site "Chennai"]
[Date "2022.08.07"]
[Round "9.17"]
[White "Murphy, Conor E"]
[Black "Lodici, Lorenzo"]
[Result "1-0"]
[WhiteElo "2404"]
[BlackElo "2553"]
[Annotator "TA"]
[PlyCount "79"]
[EventDate "2022.??.??"]
[TimeControl "60"]

{[%evp 12,79,14,13,24,17,12,9,29,20,27,26,33,0,41,15,28,13,69,29,54,35,56,51,
54,15,24,38,41,48,52,42,50,49,52,51,48,35,43,18,38,41,50,31,42,50,85,44,44,37,
54,0,51,0,43,47,51,68,62,62,83,75,77,78,239,237,370,360,952,906]} 1. e4 {
[%emt 0:00:05]} e5 {[%emt 0:00:04]} 2. Nf3 {[%emt 0:00:12]} Nc6 {[%emt 0:00:05]
} 3. Bc4 {[%emt 0:00:19]} Bc5 {[%emt 0:00:14]} 4. c3 {[%emt 0:00:23]} Nf6 {
[%emt 0:00:05]} 5. d3 {[%emt 0:00:14]} d6 {[%emt 0:00:41]} 6. Nbd2 {[%emt 0:00:
00][%cal Yb1d2,Yd2f1,Yf1g3]} h6 {[%emt 0:01:20]} 7. O-O {[%emt 0:00:00]} O-O {
[%emt 0:03:17] C54: Giuoco Piano: 4 c3 Nf6, main lines with 5 d4 and 5 d3.} 8.
Re1 {[%emt 0:01:58]} a5 {[%emt 0:06:23]} 9. Nf1 {[%emt 0:01:37]} Ba7 {[%emt 0:
02:35] The position is equal.} 10. h3 {[%emt 0:03:35]} Ne7 {[%emt 0:00:00]} 11.
Ng3 {[%emt 0:03:44]} Ng6 {[%emt 0:00:20][%cal Ya5a4]} 12. d4 {[%emt 0:01:14]}
Re8 {[%emt 0:09:47]} 13. Bd3 {[%emt 0:04:22]} Bd7 {[%emt 0:00:00]} 14. Be3 {
[%emt 0:02:56] [#]} Qe7 $146 {[%emt 0:07:26]} (14... exd4 $11 15. cxd4 c5) ({
Predecessor:} 14... a4 15. Qd2 a3 16. b3 Bb6 17. Rad1 Kh7 18. Bc2 Qc8 19. c4
Be6 20. c5 exd4 21. Bxd4 Bxc5 22. Bxf6 gxf6 {0-1 (65) Santos Ruiz,M (2585)
-Postny,E (2605) Moscow 2019}) 15. Qd2 {[%emt 0:04:48]} Qf8 {[%emt 0:00:00]}
16. Rad1 {[%emt 0:04:01]} Rad8 {[%emt 0:03:50]} 17. Qc2 {[%emt 0:04:39]} Ra8 {
[%emt 0:04:38]} 18. c4 {[%emt 0:05:14]} exd4 {[%emt 0:03:24]} 19. Nxd4 {
[%emt 0:00:41]} Nf4 {[%emt 0:00:47]} 20. Bf1 {[%emt 0:04:35]} Ne6 {[%emt 0:00:
00]} 21. Nb5 {[%emt 0:07:07]} Bxe3 {[%emt 0:00:48]} 22. Rxe3 {[%emt 0:00:19]}
Rac8 {[%emt 0:02:22]} 23. a3 {[%emt 0:10:59]} Nf4 {[%emt 0:07:18]} 24. b4 {
[%emt 0:04:23]} axb4 {[%emt 0:00:05]} 25. axb4 {[%emt 0:00:03]} Re5 {[%emt 0:
00:00]} 26. Nc3 {[%emt 0:03:57]} Rce8 {[%emt 0:06:16]} 27. Qd2 {[%emt 0:01:51]}
g5 {[%emt 0:02:28]} 28. Ra1 {[%emt 0:03:04]} Qe7 {[%emt 0:05:15]} 29. Ra7 {
[%emt 0:01:17]} Bc8 {[%emt 0:00:02]} 30. Ra8 {[%emt 0:05:59]} Bd7 {[%emt 0:00:
00]} 31. Ra7 {[%emt 0:00:15]} Bc8 $1 {[%emt 0:00:05]} 32. Ra8 {[%emt 0:00:03]}
Bd7 {[%emt 0:04:49]} 33. Rxe8+ {[%emt 0:02:36]} Qxe8 {[%emt 0:00:07]} 34. Re1 {
[%emt 0:01:12]} Qa8 {[%emt 0:05:29]} 35. Qb2 {[%emt 0:04:40]} Qa7 {[%emt 0:00:
00]} 36. c5 {[%emt 0:01:29][%cal Yc4c5,Yc5d6]} Qb8 {[%emt 0:00:02]} (36... dxc5
$2 37. Nb5 Bxb5 38. Qxe5 $18) 37. Rd1 {[%emt 0:01:11]} Be6 $2 {[%emt 0:04:47] 
[#]} (37... Qf8 $16) 38. Nb5 $1 $18 {[%emt 0:03:14][%cal Yb5c7] Strongly
threatening Nxc7!} Nxe4 {[%emt 0:05:24]} (38... Ne8 {was worth a try.} 39. cxd6
cxd6 40. Nxd6 Ng6) 39. cxd6 {[%emt 0:01:11]} Rxb5 $2 {[%emt 0:00:37]} (39...
cxd6 40. Nxd6 Nxg3) 40. Nxe4 {[%emt 0:02:25] Weighted Error Value: White=0.10 
(very precise) /Black=0.22 (precise)} ({Less strong is} 40. Bxb5 Nxd6 41. Be2
Qf8 $16) 1-0

[Event "44th Chess Olympiad Open 2022"]
[Site "Chennai"]
[Date "2022.08.07"]
[Round "9.17"]
[White "Heidenfeld, Mark"]
[Black "Brunello, Sabino"]
[Result "0-1"]
[WhiteElo "2355"]
[BlackElo "2520"]
[Annotator "TA"]
[PlyCount "80"]
[EventDate "2022.??.??"]
[TimeControl "60"]

{[%evp 14,80,17,13,10,16,26,21,22,0,0,-57,-46,-125,-130,-137,-147,-150,-150,
-117,-130,-122,-139,-160,-120,-108,-116,-85,-118,-108,-41,-33,0,-131,-121,-101,
-94,-161,-150,-183,-181,-177,-171,-216,-213,-221,-218,-265,-174,-193,-118,-244,
-245,-252,-231,-189,-199,-333,-235,-323,-315,-381,-369,-406,-373,-841,-819,
-988,-772]} 1. e4 {[%emt 0:00:09]} c5 {[%emt 0:00:09]} 2. Nf3 {[%emt 0:00:11]}
d6 {[%emt 0:00:07]} 3. d4 {[%emt 0:00:57]} cxd4 {[%emt 0:00:05]} 4. Nxd4 {
[%emt 0:00:17]} Nf6 {[%emt 0:00:12]} 5. Nc3 {[%emt 0:00:28]} a6 {[%emt 0:00:06]
} 6. g3 {[%emt 0:04:37]} e5 {[%emt 0:05:30]} 7. Nde2 {[%emt 0:04:22]} Be6 {
[%emt 0:16:56]} 8. Bg2 {[%emt 0:01:39]} Nbd7 {[%emt 0:03:44] B91: Sicilian
Najdorf: 6 g3.} 9. O-O {[%emt 0:04:29]} h5 {[%emt 0:05:13]} 10. Bg5 {[%emt 0:
00:00]} Be7 {[%emt 0:05:31] The position is equal.} 11. Qd2 {[%emt 0:04:00]} b5
{[%emt 0:05:04][%cal Yb7b5,Yb5b4] [#]} 12. a4 $146 {[%emt 0:17:13]} (12. a3 $11
) ({Predecessor:} 12. Bxf6 Nxf6 13. a4 b4 14. Nd5 a5 15. c4 Nxd5 16. exd5 Bg4
17. h3 Bxe2 18. Qxe2 {0-1 (49) Mirski,M (1868)-Olszewski,M (2522) Warsaw 2022})
12... b4 $15 {[%emt 0:00:34]} 13. Nd5 {[%emt 0:00:19]} ({Better is} 13. Bxf6
$15 Nxf6 14. Nd5) 13... Nxd5 $17 {[%emt 0:10:47]} 14. exd5 {[%emt 0:00:11]}
Bxg5 {[%emt 0:00:05]} 15. f4 {[%emt 0:00:15] [#]} Bg4 {[%emt 0:00:00]} 16. fxg5
{[%emt 0:01:32]} Bxe2 {[%emt 0:00:04]} 17. Qxe2 {[%emt 0:00:00]} Qxg5 {[%emt 0:
00:06]} 18. Rf4 {[%emt 0:11:48]} h4 {[%emt 0:10:47]} 19. Rg4 {[%emt 0:04:19]}
Qh5 {[%emt 0:01:31]} 20. Bf3 {[%emt 0:01:38]} ({Wrong is} 20. gxh4 $2 f5 21.
Re4 fxe4 $19) 20... hxg3 {[%emt 0:03:47]} 21. hxg3 {[%emt 0:00:00]} Qh3 {
[%emt 0:01:55] Inhibits Rh4.} (21... Ke7 $17 22. Rxb4 Qh3) 22. Bg2 $1 $15 {
[%emt 0:00:57]} Qh5 {[%emt 0:06:15]} (22... Qh7 $15) 23. Bf3 $17 {[%emt 0:00:
00]} Ke7 {[%emt 0:02:19]} 24. Rxb4 {[%emt 0:02:00]} Qh3 {[%emt 0:00:56]} 25.
Kf2 {[%emt 0:03:00]} (25. Qg2 $17) 25... Qf5 $1 $36 {[%emt 0:03:58] Strongly
threatening ...Rh2+. Black has strong initiative.} ({Weaker is} 25... Qh2+ 26.
Bg2 Rh6 27. Rb3 Rf6+ 28. Rf3 Rxf3+ 29. Qxf3 $17) 26. Kg2 {[%emt 0:00:00]
Inhibits Rh2+.} Rac8 {[%emt 0:03:41]} 27. c3 {[%emt 0:01:12] [#]} Rh6 $1 {
[%emt 0:01:06] And now ...Rch8 would win.} 28. Rh4 {[%emt 0:09:01]} Rxh4 {
[%emt 0:02:35]} 29. gxh4 {[%emt 0:00:06]} Rh8 {[%emt 0:02:46]} ({Worse is} 
29... Nf6 30. Qxa6 e4 31. Qa7+ Kf8 32. Bd1 $17) 30. Rh1 {[%emt 0:02:44]} Nc5 {
[%emt 0:00:00][%cal Yd7c5,Yc5a4,Ya4c3] Against Qe4} 31. b4 {[%emt 0:00:00] [#]}
Qg6+ {[%emt 0:00:18]} ({Black should try} 31... Nd3 $1 $19 {[%cal Rd3f4]
Threatens to win with ...Nf4+.} 32. Qe4 Nf4+ 33. Kf2 Qd7) 32. Kf1 {[%emt 0:00:
27] Loses the game.} (32. Kf2 $17 {was the only chance.} Nxa4 33. Qxa6 Qc2+ 34.
Kg3) 32... Nxa4 {[%emt 0:00:25]} 33. Qxa6 {[%emt 0:01:16]} Nxc3 {[%emt 0:01:01]
} 34. Qa7+ {[%emt 0:00:12]} Kf6 {[%emt 0:00:05] Dancing on a razor blade.} 35.
Qe3 {[%emt 0:00:10] Against Qd3+} (35. Qb6 $142 Qd3+ 36. Kg2 Qd2+ 37. Kf1)
35... Rc8 {[%emt 0:01:59] aiming for ...e4.} 36. Rg1 {[%emt 0:00:00]} Qh6 {
[%emt 0:01:16]} 37. Qf2 {[%emt 0:01:10] Bg4+ is the strong threat.} Ke7 {
[%emt 0:00:53]} 38. Rg4 {[%emt 0:00:19]} Qc1+ {[%emt 0:01:10]} 39. Kg2 $2 {
[%emt 0:00:09] [#]} (39. Qe1 Qc2 40. Kg1) 39... Nxd5 $1 {[%emt 0:00:17]} 40.
Kg3 {[%emt 0:01:17]} (40. Qg3 Ne3+) 40... Ne3 {[%emt 0:01:42] Weighted Error
Value: White=0.47/Black=0.12 (very precise)} 0-1

[Event "44th Chess Olympiad Open 2022"]
[Site "Chennai"]
[Date "2022.08.07"]
[Round "9.18"]
[White "Tari, Aryan"]
[Black "Priasmoro, Novendra"]
[Result "1/2-1/2"]
[WhiteElo "2672"]
[BlackElo "2494"]
[Annotator "TA"]
[PlyCount "100"]
[EventDate "2022.??.??"]
[TimeControl "60"]

{[%evp 12,100,17,12,15,16,29,0,0,0,0,0,0,0,0,0,0,0,1,0,0,8,8,0,0,4,32,26,37,23,
16,0,0,0,0,-227,-237,-223,-235,-181,0,0,0,0,0,0,16,0,245,178,326,326,566,563,
548,533,545,202,187,-30,-30,-30,0,0,0,-15,-16,-18,-24,-14,0,0,0,-23,0,0,0,0,0,
0,0,0,0,0,8,0,8,8,8,0,22]} 1. e4 {[%emt 0:00:58]} e5 {[%emt 0:00:13]} 2. Nf3 {
[%emt 0:00:15]} Nc6 {[%emt 0:00:12]} 3. Bc4 {[%emt 0:00:12]} Nf6 {[%emt 0:00:
00]} 4. d3 {[%emt 0:00:05]} Bc5 {[%emt 0:01:04]} 5. c3 {[%emt 0:00:21]} d6 {
[%emt 0:02:09]} 6. O-O {[%emt 0:00:34]} O-O {[%emt 0:00:44]} 7. Re1 {[%emt 0:
00:00]} a5 {[%emt 0:05:56] C54: Giuoco Piano: 4 c3 Nf6, main lines with 5 d4
and 5 d3.} 8. h3 {[%emt 0:01:24]} h6 {[%emt 0:04:25]} 9. d4 {[%emt 0:00:56]}
Ba7 {[%emt 0:01:09][%cal Yf6e4]} 10. Bb3 {[%emt 0:01:23]} Re8 {[%emt 0:03:13]}
11. Bc2 {[%emt 0:01:36]} exd4 {[%emt 0:05:32]} 12. cxd4 {[%emt 0:00:22]} Nb4 $1
{[%emt 0:00:18]} 13. Nc3 {[%emt 0:00:39]} Nxc2 {[%emt 0:00:25]} 14. Qxc2 {
[%emt 0:00:11]} c6 {[%emt 0:00:31] [#]} 15. Bd2 $146 {[%emt 0:18:52]} ({
Predecessor:} 15. a4 Be6 16. Bf4 d5 17. e5 Ne4 18. Nxe4 dxe4 19. Qxe4 Bd5 20.
Qd3 Bxf3 21. Qxf3 Qxd4 {0-1 (43) Amin,B (2680)-Sargsyan,S (2628) Warsaw 2021})
15... Be6 {[%emt 0:00:54]} 16. Be3 {[%emt 0:20:26]} Qd7 {[%emt 0:02:18]} 17.
Rad1 {[%emt 0:05:34]} b5 {[%emt 0:07:46]} 18. Nd2 {[%emt 0:10:26]} Re7 {
[%emt 0:10:35]} 19. Ne2 {[%emt 0:02:20]} Rae8 {[%emt 0:10:06]} (19... Bxa2 20.
b3 $16) 20. Rc1 {[%emt 0:02:56]} c5 {[%emt 0:12:16][%cal Ye6d5]} (20... Bxa2
21. b3 Bxb3 22. Nxb3 $16 (22. Qxb3 Nxe4 23. Nxe4 Rxe4 $14)) 21. b3 {[%emt 0:00:
00]} Bxh3 {[%emt 0:09:14]} 22. gxh3 {[%emt 0:06:33]} Qxh3 {[%emt 0:00:26]} 23.
Nf4 $2 {[%emt 0:02:23]} (23. dxc5 $11 Ng4 24. Nf4 (24. Nf1 Nxe3 25. fxe3 Rxe4
$11) 24... Qh2+ 25. Kf1) 23... Qg4+ $19 {[%emt 0:01:06]} 24. Ng2 {[%emt 0:00:
00]} cxd4 {[%emt 0:02:20]} 25. Bf4 {[%emt 0:00:11] [#]} Nd5 $2 {[%emt 0:07:10]}
26. Bxd6 $11 {[%emt 0:04:49] And now Qc6 would win.} Re6 {[%emt 0:00:07][%cal
Ye6g6]} 27. Qd3 {[%emt 0:01:03]} Nc3 {[%emt 0:04:03]} 28. Bg3 {[%emt 0:01:45]}
h5 {[%emt 0:04:53]} 29. e5 {[%emt 0:02:52] Strongly threatening Ne4.} Rg6 $2 {
[%emt 0:00:41]} (29... Bb6 $1 $11) 30. Nf3 {[%emt 0:02:13]} Nxa2 {[%emt 0:00:
00]} (30... a4 $142 31. Rc2 axb3 32. axb3 Nd5) 31. Rc7 $18 {[%emt 0:01:56]} (
31. Qxb5 Rb8 32. Qd3 (32. Qxa5 Nxc1 33. Qxa7 Rc8 $11) 32... Nxc1 33. Rxc1 Rd8
$11) 31... Nb4 $2 {[%emt 0:02:42]} (31... Bb6) 32. Qxb5 {[%emt 0:01:06]} Rb8 {
[%emt 0:00:16] [#]} 33. Qd7 {[%emt 0:03:34]} Qxf3 {[%emt 0:00:23]} 34. Rxa7 $2
{[%emt 0:00:53]} (34. e6 Kh7 35. Qxf7 (35. Rxa7 Nd3 $16) 35... Qxf7 36. exf7 (
36. Rxf7 Ra8 $16)) 34... Nd3 {[%emt 0:00:05] [#]} 35. Qc7 $2 {[%emt 0:01:15]} (
{Worse is} 35. Qxd4 Nxe1 36. Nxe1 Qxb3 $17) ({Only move:} 35. e6 $1 $18 {
[%cal Re6f7]} Kh7 36. Rf1 (36. Qxd4 Rb4 $17)) 35... Rf8 $36 {[%emt 0:01:33]
Black has the initiative.} 36. Rf1 {[%emt 0:00:33][%cal Ye1f1,Yf1f2,Yf2d2,
Yd2d4]} Nxf2 {[%emt 0:01:07] Remove Defender} 37. Rxf2 {[%emt 0:00:19]} Qxg3 {
[%emt 0:00:04]} 38. e6 {[%emt 0:02:43][%cal Rc7f7] Black must now prevent
Qxf7+! Dancing on a razor blade.} Qxc7 {[%emt 0:00:10]} 39. Rxc7 {[%emt 0:00:
01][%cal Re6f7]} fxe6 {[%emt 0:00:58]} 40. Rd2 {[%emt 0:00:00]} Rb8 {[%emt 0:
00:35]} 41. Rxd4 {[%emt 0:05:25]} Rxb3 {[%emt 0:00:57]} 42. Rd8+ {[%emt 0:01:
31]} Kh7 {[%emt 0:00:07]} 43. Rc5 {[%emt 0:00:29][%csl Ya5,Yh5] The position
is equal.} Rg4 {[%emt 0:04:14]} 44. Rxh5+ {[%emt 0:00:00]} Kg6 {[%emt 0:00:06]}
45. Rh4 {[%emt 0:00:45]} ({Wrong is} 45. Rxa5 $2 Rb2 46. Rf8 Rgxg2+ 47. Kf1 Rh2
$19) 45... Rxh4 {[%emt 0:01:25]} 46. Nxh4+ {[%emt 0:00:00]} Kg5 {[%emt 0:00:09]
} 47. Ng2 {[%emt 0:01:13]} a4 {[%emt 0:00:24]} 48. Ra8 {[%emt 0:00:30]} a3 {
[%emt 0:00:09]} 49. Kf2 {[%emt 0:00:03]} e5 {[%emt 0:00:00]} 50. Ra4 {[%emt 0:
02:10]} g6 {[%emt 0:03:33] What a bad dream for Black. Weighted Error Value:
White=0.32/Black=0.30} 1/2-1/2

[Event "44th Chess Olympiad Open 2022"]
[Site "Chennai"]
[Date "2022.08.07"]
[Round "9.18"]
[White "Urkedal, Frode Olav Olsen"]
[Black "Ervan, Mohamad"]
[Result "1-0"]
[WhiteElo "2555"]
[BlackElo "2402"]
[Annotator "TA"]
[PlyCount "113"]
[EventDate "2022.??.??"]
[TimeControl "60"]

{[%evp 18,113,35,32,38,45,39,39,37,32,50,35,50,45,51,50,85,82,77,47,73,74,118,
111,77,85,118,100,124,124,112,57,56,51,113,101,95,99,137,126,128,136,139,127,
127,110,149,155,231,236,236,229,237,233,221,221,229,221,221,215,212,216,208,
212,246,253,246,246,246,246,303,0,222,0,287,287,287,287,240,270,733,730,715,
710,2186,1510,29948,1682,29973,29974,29968,29965,29963,29947,29986,29987,29991,
29992]} 1. d4 {[%emt 0:00:04]} Nf6 {[%emt 0:00:19]} 2. c4 {[%emt 0:00:05]} e6 {
[%emt 0:00:08]} 3. Nf3 {[%emt 0:00:04]} b6 {[%emt 0:00:12]} 4. g3 {[%emt 0:00:
00]} Bb4+ {[%emt 0:00:14]} 5. Bd2 {[%emt 0:00:15]} c5 {[%emt 0:00:11]} 6. Bg2 {
[%emt 0:00:57]} Bb7 {[%emt 0:00:13]} 7. Bxb4 {[%emt 0:00:56]} cxb4 {[%emt 0:00:
00]} 8. O-O {[%emt 0:00:08]} O-O {[%emt 0:00:07]} 9. Qd3 {[%emt 0:00:42]} d6 {
[%emt 0:01:38]} 10. Nbd2 {[%emt 0:00:05]} a5 {[%emt 0:15:29] E16: Queen's
Indian: 4 g3 Bb7 5 Bg2 Bb4+.} 11. Rfd1 {[%emt 0:00:42]} Qc7 {[%emt 0:02:33] [#]
} 12. e4 $146 {[%emt 0:05:29]} ({Predecessor:} 12. Ne1 Bxg2 13. Nxg2 Nc6 14.
Ne3 Ne7 15. a3 bxa3 16. bxa3 Rac8 17. Rab1 h6 18. Ne4 Nxe4 19. Qxe4 {1-0 (70)
Artemiev,V (2674)-Cordova,E (2610) Moscow 2016}) 12... Nbd7 {[%emt 0:06:29]
White is slightly better.} 13. Ne1 {[%emt 0:02:07][%cal Yf3e1,Ye1c2,Yc2a3,
Ya3b5]} Rfd8 {[%emt 0:01:50]} 14. Nc2 {[%emt 0:01:21]} Rab8 {[%emt 0:00:00]}
15. a3 {[%emt 0:05:36]} bxa3 {[%emt 0:01:11]} 16. Nxa3 {[%emt 0:00:07]} Nf8 {
[%emt 0:05:06]} 17. Nb5 {[%emt 0:06:14]} Qe7 {[%emt 0:04:03]} 18. Nf1 {[%emt 0:
05:55]} Ba6 {[%emt 0:08:01]} 19. Ne3 {[%emt 0:08:52][%cal Yb5d6]} g6 {[%emt 0:
04:55] [#]} 20. Nxd6 $1 {[%emt 0:04:24]} Qxd6 {[%emt 0:05:12]} 21. e5 {[%emt 0:
00:07]} Qb4 {[%emt 0:01:25][%cal Yf6d5]} 22. exf6 {[%emt 0:00:00] Hoping for
d5.} Nd7 {[%emt 0:00:24] [#]} 23. d5 $1 $36 {[%emt 0:16:26] dxe6 is the strong
threat. Keeping Black busy.} e5 {[%emt 0:07:27]} 24. Qa3 {[%emt 0:06:38]} ({
Better is} 24. Qe4 $16) 24... Qxa3 $14 {[%emt 0:00:00]} 25. Rxa3 {[%emt 0:04:
12] And now b4 would win.} Bb7 {[%emt 0:00:44]} (25... Bc8 $14) 26. b4 {
[%emt 0:02:09]} (26. Ng4 {looks sharper.} h5 27. Nh6+ Kf8 28. g4) 26... axb4 {
[%emt 0:01:44]} 27. Rb3 {[%emt 0:00:05] 0x0.0002d9e25533dp-1022s more active
pieces.} Ba6 {[%emt 0:04:09]} 28. Ra1 {[%emt 0:02:41]} b5 {[%emt 0:03:59]} 29.
Rxb4 {[%emt 0:06:01]} (29. Rxa6 Nc5 30. Ra7 (30. Rxb4 Nxa6 31. Rxb5 Rxb5 $15)
30... Nxb3 $15) 29... bxc4 {[%emt 0:00:00]} 30. Rxb8 {[%emt 0:00:08]} Nxb8 {
[%emt 0:00:07]} 31. Ng4 {[%emt 0:03:45]} c3 {[%emt 0:04:28]} 32. Nxe5 {[%emt 0:
02:31]} h5 {[%emt 0:01:46]} (32... Bb5 $16 33. Rc1 Rc8) 33. Rc1 $18 {[%emt 0:
00:38]} Nd7 {[%emt 0:01:50]} 34. Nxd7 {[%emt 0:09:49]} Rxd7 {[%emt 0:00:03]}
35. Rxc3 {[%emt 0:00:07] Endgame KRB-KRB} Bb7 {[%emt 0:00:09]} 36. Rc5 {
[%emt 0:01:19] Threatens to win with Rb5.} Rd6 {[%emt 0:00:40]} 37. f4 {
[%emt 0:00:15]} Rxf6 {[%emt 0:03:05]} 38. Rb5 {[%emt 0:04:32]} Ba6 {[%emt 0:00:
18] [#]} 39. Rb8+ {[%emt 0:00:06]} Kg7 {[%emt 0:00:05]} 40. Kf2 {[%emt 0:00:48]
} g5 {[%emt 0:00:32]} 41. Ke3 {[%emt 0:00:00]} gxf4+ {[%emt 0:31:22]} 42. gxf4
{[%emt 0:00:07]} Bc4 {[%emt 0:00:47]} 43. Rb4 {[%emt 0:04:01]} Ba6 {[%emt 0:00:
00]} 44. Rb8 {[%emt 0:00:00] Inhibits Bc8.} Bc4 {[%emt 0:00:00]} 45. Rb4 {
[%emt 0:00:00]} Ba6 {[%emt 0:00:00]} 46. h4 {[%emt 0:00:00]} Bc8 {[%emt 0:00:
00]} 47. Rc4 {[%emt 0:00:00]} Bd7 {[%emt 0:00:00]} 48. Rc7 {[%emt 0:00:00]} Rd6
{[%emt 0:00:00]} (48... Be8 49. Bf3 Kg6 50. Be4+ Kg7) 49. Kd4 {[%emt 0:00:00]
aiming for Ke5.} Bg4 {[%emt 0:00:00]} 50. Ke5 {[%emt 0:00:00]} Ra6 {[%emt 0:00:
00]} 51. f5 {[%emt 0:00:00][%cal Yf4f5,Yf5f6]} Ra2 {[%emt 0:00:00]} 52. Be4 {
[%emt 0:00:00]} (52. f6+ $142 Kf8 53. Be4 Ra8 54. d6 Ra5+ 55. Kf4 Ra6 56. Bc6
Kg8 57. Kg5) 52... Ra8 {[%emt 0:00:00]} 53. f6+ {[%emt 0:00:00] White mates.}
Kf8 {[%emt 0:00:00]} 54. d6 {[%emt 0:00:00][%cal Yd5d6,Yd6d7]} Ra5+ {[%emt 0:
00:00]} 55. Kf4 {[%emt 0:00:00]} Rb5 {[%emt 0:00:00]} 56. d7 {[%emt 0:00:00]
[%cal Rd7d8]} Rb8 {[%emt 0:00:00]} 57. Bf5 {[%emt 0:00:00] Weighted Error
Value: White=0.17 (very precise) / Black=0.38} 1-0

[Event "44th Chess Olympiad Open 2022"]
[Site "Chennai"]
[Date "2022.08.07"]
[Round "9.18"]
[White "Megaranto, Susanto"]
[Black "Carlsen, Magnus"]
[Result "0-1"]
[WhiteElo "2529"]
[BlackElo "2864"]
[Annotator "TA"]
[PlyCount "94"]
[EventDate "2022.??.??"]
[TimeControl "60"]

{[%evp 11,94,5,11,15,20,8,11,13,16,7,20,4,15,0,7,-11,0,0,0,0,0,0,7,0,0,14,12,
16,22,0,0,0,0,0,0,0,0,0,0,0,0,0,0,0,0,0,0,0,0,0,0,-29,-25,-20,-20,-60,-8,-233,
-228,-241,-192,-239,-224,-250,-235,-386,-385,-1327,-1328,-1321,-1308,-1298,
-1295,-1275,-1287,-1259,-1256,-1257,-1244,-1140,-409,-1115,-1125,-716,-685]} 1.
d4 {[%emt 0:00:03]} Nf6 {[%emt 0:00:21]} 2. Nf3 {[%emt 0:00:05]} e6 {[%emt 0:
00:00]} 3. c4 {[%emt 0:01:40]} Bb4+ {[%emt 0:05:06]} 4. Bd2 {[%emt 0:00:06]} a5
{[%emt 0:00:25]} 5. a3 {[%emt 0:01:56]} Bxd2+ {[%emt 0:01:39]} 6. Nbxd2 {
[%emt 0:00:58]} d6 {[%emt 0:02:41]} 7. e3 {[%emt 0:04:02] E11: Bogo-Indian.}
Qe7 {[%emt 0:02:01]} 8. Bd3 {[%emt 0:01:28]} e5 {[%emt 0:02:02] And now ...e4
would win.} 9. Qc2 {[%emt 0:00:24] The position is equal.} Nbd7 {[%emt 0:03:14]
} 10. O-O {[%emt 0:03:54][%cal Yc4c5]} O-O {[%emt 0:02:27] [#]} 11. b3 $146 {
[%emt 0:10:17]} ({Predecessor:} 11. Ne4 Nxe4 12. Bxe4 g6 13. dxe5 dxe5 14. Qc3
a4 15. Bc2 Re8 16. Nd2 Nc5 17. Ne4 {½-½ (36) Nie,X (2346)-Nguyen,N (2636)
China 2019}) 11... Re8 {[%emt 0:04:43] Threatens to win with ...e4.} 12. e4 {
[%emt 0:01:30]} Nf8 {[%emt 0:09:54]} 13. Rfe1 {[%emt 0:09:06]} Bg4 {[%emt 0:00:
00]} 14. d5 {[%emt 0:03:34]} N8d7 {[%emt 0:06:25]} 15. h3 {[%emt 0:03:41]} Bxf3
{[%emt 0:01:07]} 16. Nxf3 {[%emt 0:00:06]} g6 {[%emt 0:00:37]} 17. b4 {[%emt 0:
00:00]} Ra7 {[%emt 0:07:07]} 18. Nd2 {[%emt 0:04:27]} Rea8 {[%emt 0:01:21] ...
axb4 is the strong threat.} 19. Nb3 {[%emt 0:00:56]} b6 {[%emt 0:02:48]} 20.
Qc3 {[%emt 0:02:12]} axb4 {[%emt 0:07:40]} 21. axb4 {[%emt 0:00:05]} h5 {
[%emt 0:00:15]} 22. Rxa7 {[%emt 0:11:09]} Rxa7 {[%emt 0:00:02]} 23. Ra1 {
[%emt 0:00:12]} Rxa1+ {[%emt 0:00:39]} 24. Qxa1 {[%emt 0:00:11]} Qd8 {[%emt 0:
00:00]} 25. Nd2 {[%emt 0:15:59]} h4 {[%emt 0:00:31]} 26. Be2 {[%emt 0:03:04]}
Kg7 {[%emt 0:02:23]} 27. Qa3 {[%emt 0:01:44]} Nh7 {[%emt 0:00:40]} 28. Bg4 {
[%emt 0:04:25]} Ndf6 {[%emt 0:00:23]} 29. Bd1 {[%emt 0:02:46]} Ng5 {[%emt 0:00:
00]} 30. Qe3 {[%emt 0:00:00]} Qa8 {[%emt 0:00:25][%cal Ya8a1]} 31. Kf1 {
[%emt 0:02:52]} (31. Be2 $5 {[%cal Re3g5]} Qa1+ 32. Bf1 $11) 31... Qa1 {
[%emt 0:00:18]} 32. Ke1 {[%emt 0:00:06]} Ngh7 {[%emt 0:05:00]} 33. c5 {[%emt 0:
00:00]} Nh5 {[%emt 0:01:14]} (33... bxc5 $15 34. bxc5 Nd7) 34. g3 $2 {[%emt 0:
00:00] Now White is beyond hope.} (34. cxb6 $2 Nf4 35. Qb3 cxb6 $17) (34. Nb3
$1 $11 {and White stays safe.} Qb1 35. Nd2) 34... hxg3 $19 {[%emt 0:01:55]} 35.
fxg3 {[%emt 0:00:06]} b5 {[%emt 0:01:08]} 36. Qd3 {[%emt 0:03:30] [#]} (36.
cxd6 {was called for.} cxd6 37. Nb3) 36... N7f6 $1 {[%emt 0:00:32]} 37. c6 {
[%emt 0:01:51]} Qb2 {[%emt 0:05:12]} 38. Qxb5 $2 {[%emt 0:02:00]} (38. Qb3 Qd4
39. Bc2) 38... Qc3 {[%emt 0:02:36] ( -> ...Nxe4)} 39. Bf3 {[%emt 0:01:40] [#]}
(39. Qe2 Nxg3 40. Qf3 Ngxe4 41. Qxc3 Nxc3 42. Bb3) 39... Nxe4 $1 {[%emt 0:00:
00]} 40. Bxe4 {[%emt 0:00:27]} Qc1+ {[%emt 0:00:09]} 41. Ke2 {[%emt 0:30:55]}
Nxg3+ {[%emt 0:30:17]} 42. Kf2 {[%emt 0:00:00]} Qxd2+ {[%emt 0:00:00]} 43. Kxg3
{[%emt 0:00:00]} Qf4+ {[%emt 0:00:00]} 44. Kg2 {[%emt 0:00:00]} Qxe4+ {[%emt 0:
00:00]} 45. Kf2 {[%emt 0:00:00]} Qc2+ {[%emt 0:00:00]} (45... Qf4+ $142 46. Kg2
e4) 46. Ke1 {[%emt 0:00:00]} (46. Qe2 $142 Qb3 47. b5) 46... e4 {[%emt 0:00:00]
} 47. Kf1 {[%emt 0:00:00]} Qd1+ {[%emt 0:00:00] Weighted Error Value: White=0.
55/Black=0.13 (very precise)} 0-1